[Event "Orlicka sachovnice 2023"]
[Site "Usti nad Orlici, Czech Republic"]
[Date "2023.05.06"]
[Round "2.1"]
[White "Stary, Vojtech"]
[Black "Kloud, Tomas"]
[Result "1-0"]
[TimeControl "12 min + 3 s"]
[WhiteElo "1604"]
[BlackElo "1075"]

1. d4 {[%clk 00:12:02]} {[%emt 00:00:05]} Nf6 {[%clk 00:12:05]} {[%emt
00:00:02]} 2. c4 {[%clk 00:12:04]} {[%emt 00:00:01]} e6 {[%clk 00:12:06]}
{[%emt 00:00:01]} 3. Nc3 {[%clk 00:12:06]} {[%emt 00:00:01]} d5 {[%clk
00:12:05]} {[%emt 00:00:04]} 4. cxd5 {[%clk 00:12:05]} {[%emt 00:00:03]} exd5
{[%clk 00:12:03]} {[%emt 00:00:04]} 5. Bg5 {[%clk 00:12:03]} {[%emt 00:00:05]}
Bb4 {[%clk 00:12:01]} {[%emt 00:00:06]} 6. e3 {[%clk 00:12:00]} {[%emt
00:00:06]} O-O {[%clk 00:11:52]} {[%emt 00:00:12]} 7. Bd3 {[%clk 00:11:55]}
{[%emt 00:00:09]} Be6 {[%emt 00:00:32]} 8. Nf3 {[%emt 00:00:12]} Nbd7 {[%clk
00:11:17]} {[%emt 00:00:03]} 9. O-O {[%emt 00:00:18]} h6 {[%clk 00:10:56]}
{[%emt 00:00:12]} 10. Bh4 {[%clk 00:11:48]} {[%emt 00:00:04]} c5 {[%emt
00:01:12]} 11. a3 {[%clk 00:11:05]} {[%emt 00:00:07]} Bxc3 {[%clk 00:09:49]}
{[%emt 00:00:42]} 12. bxc3 {[%emt 00:00:24]} c4 {[%clk 00:09:19]} {[%emt
00:00:13]} 13. Bc2 {[%emt 00:00:31]} Qc7 {[%emt 00:01:21]} 14. Bg3 {[%clk
00:09:52]} {[%emt 00:00:02]} Qc6 {[%clk 00:08:29]} {[%emt 00:00:19]} 15. Ne5
{[%clk 00:08:52]} {[%emt 00:01:03]} Qc7 {[%emt 00:01:10]} 16. Ng6 {[%emt
00:00:03]} Qc6 {[%clk 00:06:35]} {[%emt 00:01:06]} 17. Ne7+ {[%clk 00:08:36]}
{[%emt 00:00:03]} 1-0

[Event "Orlicka sachovnice 2023"]
[Site "Usti nad Orlici, Czech Republic"]
[Date "2023.05.06"]
[Round "2.2"]
[White "Zimmermann, Jost"]
[Black "Sorf, Filip"]
[Result "0-1"]
[TimeControl "12 min + 3 s"]
[WhiteElo "1061"]
[BlackElo "1513"]

1. e4 {[%clk 00:12:05]} {[%emt 00:00:01]} e5 {[%clk 00:12:05]} 2. Nf3 {[%clk
00:12:07]} {[%emt 00:00:01]} Nc6 {[%clk 00:12:07]} {[%emt 00:00:02]} 3. Bc4
{[%clk 00:11:56]} {[%emt 00:00:13]} Bc5 {[%clk 00:12:05]} {[%emt 00:00:04]} 4.
d3 {[%clk 00:11:57]} {[%emt 00:00:02]} Nf6 {[%clk 00:12:03]} {[%emt 00:00:05]}
5. Bg5 {[%clk 00:11:58]} {[%emt 00:00:03]} h6 {[%clk 00:12:04]} {[%emt
00:00:02]} 6. Bh4 {[%clk 00:12:00]} {[%emt 00:00:01]} d6 {[%clk 00:12:05]}
{[%emt 00:00:01]} 7. c3 {[%clk 00:11:47]} {[%emt 00:00:16]} Bb6 {[%clk
00:11:55]} {[%emt 00:00:13]} 8. Nbd2 {[%clk 00:11:42]} {[%emt 00:00:08]} Na5
{[%clk 00:11:48]} {[%emt 00:00:10]} 9. b4 {[%clk 00:10:46]} {[%emt 00:00:58]}
Nxc4 {[%clk 00:11:48]} {[%emt 00:00:04]} 10. Nxc4 {[%clk 00:10:48]} {[%emt
00:00:01]} Bd7 {[%clk 00:11:29]} {[%emt 00:00:22]} 11. Nxb6 {[%clk 00:10:46]}
{[%emt 00:00:05]} axb6 {[%clk 00:11:30]} {[%emt 00:00:02]} 12. O-O {[%clk
00:10:45]} {[%emt 00:00:04]} g5 {[%clk 00:11:31]} {[%emt 00:00:02]} 13. Bg3
{[%clk 00:10:47]} {[%emt 00:00:01]} g4 {[%clk 00:11:33]} {[%emt 00:00:01]} 14.
Nh4 {[%clk 00:10:44]} {[%emt 00:00:04]} h5 {[%clk 00:11:08]} {[%emt 00:00:29]}
15. f3 {[%clk 00:10:39]} {[%emt 00:00:08]} Qe7 {[%clk 00:09:35]} {[%emt
00:01:36]} 16. d4 {[%clk 00:08:54]} {[%emt 00:01:48]} Rd8 {[%clk 00:08:45]}
{[%emt 00:00:53]} 17. d5 {[%clk 00:06:27]} {[%emt 00:02:30]} Bc8 {[%clk
00:07:13]} {[%emt 00:01:35]} 18. c4 {[%clk 00:05:54]} {[%emt 00:00:36]} c6
{[%clk 00:06:42]} {[%emt 00:00:34]} 19. Bf2 {[%clk 00:04:29]} {[%emt 00:01:28]}
gxf3 {[%clk 00:06:08]} {[%emt 00:00:37]} 20. Nxf3 {[%clk 00:04:14]} {[%emt
00:00:19]} c5 {[%clk 00:05:41]} {[%emt 00:00:30]} 21. a3 {[%clk 00:03:31]}
{[%emt 00:00:47]} Rg8 {[%clk 00:04:35]} {[%emt 00:01:08]} 22. Re1 {[%clk
00:03:12]} {[%emt 00:00:22]} Bh3 {[%clk 00:04:18]} {[%emt 00:00:21]} 23. g3
{[%clk 00:03:00]} {[%emt 00:00:15]} Ng4 {[%clk 00:04:07]} {[%emt 00:00:14]} 24.
Qd2 {[%clk 00:02:32]} {[%emt 00:00:31]} Qf6 {[%clk 00:03:40]} {[%emt 00:00:30]}
25. Qe2 {[%clk 00:02:13]} {[%emt 00:00:22]} h4 {[%clk 00:02:45]} {[%emt
00:00:57]} 26. Nxh4 {[%clk 00:01:55]} {[%emt 00:00:22]} Nxf2 {[%clk 00:02:47]}
{[%emt 00:00:01]} 27. Qxf2 {[%clk 00:01:57]} {[%emt 00:00:02]} Qxh4 {[%clk
00:02:48]} 28. Kh1 {[%clk 00:01:44]} {[%emt 00:00:16]} Qh5 {[%clk 00:02:22]}
{[%emt 00:00:30]} 29. Rg1 {[%clk 00:01:27]} {[%emt 00:00:20]} Bg4 {[%clk
00:02:08]} {[%emt 00:00:17]} 30. Raf1 {[%clk 00:00:41]} {[%emt 00:00:47]} Be2
{[%clk 00:02:08]} {[%emt 00:00:03]} 31. Qf5 {[%clk 00:00:22]} {[%emt 00:00:22]}
Qxf5 {[%clk 00:01:53]} {[%emt 00:00:18]} 32. Rxf5 {[%clk 00:00:25]} Bxc4 {[%clk
00:01:53]} {[%emt 00:00:03]} 33. Rc1 {[%clk 00:00:27]} {[%emt 00:00:02]} Bd3
{[%clk 00:01:50]} {[%emt 00:00:05]} 34. Rf3 {[%clk 00:00:13]} {[%emt 00:00:15]}
Bxe4 {[%clk 00:01:51]} {[%emt 00:00:03]} 35. Rcf1 {[%clk 00:00:13]} {[%emt
00:00:03]} Bxd5 {[%clk 00:01:51]} {[%emt 00:00:03]} 36. Kg1 {[%clk 00:00:15]}
{[%emt 00:00:02]} Bxf3 {[%clk 00:01:52]} {[%emt 00:00:01]} 37. Rxf3 {[%clk
00:00:16]} {[%emt 00:00:01]} Rh8 {[%clk 00:01:54]} 38. bxc5 {[%clk 00:00:15]}
{[%emt 00:00:05]} bxc5 {[%clk 00:01:56]} {[%emt 00:00:01]} 39. Rb3 {[%clk
00:00:16]} {[%emt 00:00:02]} Rd7 {[%clk 00:01:58]} {[%emt 00:00:01]} 40. a4
{[%clk 00:00:16]} {[%emt 00:00:03]} Rg8 {[%clk 00:01:55]} {[%emt 00:00:05]} 41.
Ra3 {[%clk 00:00:17]} {[%emt 00:00:03]} f5 {[%clk 00:01:55]} {[%emt 00:00:03]}
42. a5 {[%clk 00:00:19]} {[%emt 00:00:02]} f4 {[%clk 00:01:56]} 43. Kg2 {[%clk
00:00:21]} {[%emt 00:00:02]} fxg3 {[%clk 00:01:58]} {[%emt 00:00:02]} 44. hxg3
{[%clk 00:00:23]} d5 {[%clk 00:01:55]} {[%emt 00:00:06]} 45. a6 {[%clk
00:00:24]} {[%emt 00:00:01]} bxa6 {[%clk 00:01:55]} {[%emt 00:00:03]} 46. Rxa6
{[%clk 00:00:26]} Ke7 {[%clk 00:01:54]} {[%emt 00:00:04]} 47. Ra5 {[%clk
00:00:27]} {[%emt 00:00:03]} Rc7 {[%clk 00:01:55]} {[%emt 00:00:02]} 48. Ra1
{[%clk 00:00:29]} {[%emt 00:00:01]} Kd6 {[%clk 00:01:54]} {[%emt 00:00:04]} 49.
Kh3 {[%clk 00:00:29]} {[%emt 00:00:02]} Rh7+ {[%clk 00:01:53]} {[%emt
00:00:04]} 50. Kg2 {[%clk 00:00:31]} Rhg7 {[%clk 00:01:55]} 51. Ra3 {[%clk
00:00:33]} {[%emt 00:00:01]} d4 {[%clk 00:01:52]} {[%emt 00:00:06]} 52. Ra6+
{[%clk 00:00:31]} {[%emt 00:00:05]} Kd5 {[%clk 00:01:54]} {[%emt 00:00:01]} 53.
Rf6 {[%clk 00:00:30]} {[%emt 00:00:03]} Rxg3+ {[%clk 00:01:55]} {[%emt
00:00:02]} 54. Kf2 {[%clk 00:00:32]} {[%emt 00:00:02]} R3g4 {[%clk 00:01:54]}
{[%emt 00:00:04]} 55. Rf3 {[%clk 00:00:24]} {[%emt 00:00:11]} Rf4 {[%clk
00:01:56]} {[%emt 00:00:01]} 56. Rxf4 {[%clk 00:00:26]} {[%emt 00:00:02]} exf4
{[%clk 00:01:58]} 57. Kf3 {[%clk 00:00:28]} {[%emt 00:00:01]} Re8 {[%clk
00:01:58]} {[%emt 00:00:02]} 58. Kxf4 {[%clk 00:00:30]} {[%emt 00:00:01]} Rf8+
{[%clk 00:02:00]} 59. Kg3 {[%clk 00:00:30]} {[%emt 00:00:02]} Ke4 {[%clk
00:02:02]} {[%emt 00:00:01]} 60. Kg4 {[%clk 00:00:33]} {[%emt 00:00:01]} Rg8
{[%clk 00:02:05]} 61. Kh3 {[%clk 00:00:34]} {[%emt 00:00:01]} Kf4 {[%clk
00:02:07]} {[%emt 00:00:01]} 62. Kh2 {[%clk 00:00:35]} {[%emt 00:00:02]} Kf3
{[%clk 00:02:09]} 63. Kh1 {[%clk 00:00:37]} Kf2 {[%clk 00:02:11]} {[%emt
00:00:01]} 64. Kh2 {[%clk 00:00:39]} Rh8 {[%clk 00:02:10]} 0-1

[Event "Orlicka sachovnice 2023"]
[Site "Usti nad Orlici, Czech Republic"]
[Date "2023.05.06"]
[Round "2.3"]
[White "Jun, Robert"]
[Black "Kratka, Tereza"]
[Result "1-0"]
[TimeControl "12 min + 3 s"]
[WhiteElo "1424"]
[BlackElo "1051"]

1. e4 {[%clk 00:12:05]} c5 {[%clk 00:12:05]} {[%emt 00:00:01]} 2. Nf3 {[%clk
00:12:08]} d6 {[%clk 00:12:06]} {[%emt 00:00:03]} 3. c3 {[%clk 00:12:10]} Nc6
{[%clk 00:12:07]} {[%emt 00:00:01]} 4. d4 {[%clk 00:12:12]} {[%emt 00:00:01]}
cxd4 {[%clk 00:12:05]} {[%emt 00:00:05]} 5. cxd4 {[%clk 00:12:14]} e6 {[%clk
00:11:56]} {[%emt 00:00:12]} 6. Nc3 {[%clk 00:12:16]} {[%emt 00:00:01]} Nf6
{[%clk 00:11:53]} {[%emt 00:00:06]} 7. Bb5 {[%clk 00:12:18]} {[%emt 00:00:01]}
Bd7 {[%clk 00:11:53]} {[%emt 00:00:03]} 8. O-O {[%clk 00:12:16]} {[%emt
00:00:05]} g6 {[%clk 00:11:55]} {[%emt 00:00:02]} 9. Bg5 {[%clk 00:12:12]}
{[%emt 00:00:06]} Bg7 {[%clk 00:11:55]} {[%emt 00:00:02]} 10. Bxc6 {[%clk
00:12:01]} {[%emt 00:00:15]} Bxc6 {[%clk 00:11:47]} {[%emt 00:00:11]} 11. e5
{[%clk 00:12:03]} {[%emt 00:00:01]} dxe5 {[%clk 00:11:44]} {[%emt 00:00:06]} 12.
Nxe5 {[%clk 00:12:00]} {[%emt 00:00:07]} O-O {[%clk 00:11:34]} {[%emt
00:00:13]} 13. Nxc6 {[%clk 00:12:01]} {[%emt 00:00:03]} bxc6 {[%clk 00:11:34]}
{[%emt 00:00:02]} 14. Ne4 {[%clk 00:11:56]} {[%emt 00:00:08]} Rb8 {[%clk
00:11:03]} {[%emt 00:00:34]} 15. Qf3 {[%clk 00:11:49]} {[%emt 00:00:09]} Qxd4
{[%clk 00:10:50]} {[%emt 00:00:16]} 16. Nxf6+ {[%clk 00:11:46]} {[%emt
00:00:07]} Kh8 {[%clk 00:10:22]} {[%emt 00:00:31]} 17. Rad1 {[%clk 00:11:25]}
{[%emt 00:00:23]} Qxb2 {[%clk 00:10:10]} {[%emt 00:00:15]} 18. Nd7 {[%clk
00:11:27]} {[%emt 00:00:01]} Qxa2 {[%clk 00:09:53]} {[%emt 00:00:21]} 19. Bf6
{[%clk 00:10:45]} {[%emt 00:00:45]} Rb3 {[%clk 00:09:37]} {[%emt 00:00:18]} 20.
Bxg7+ {[%clk 00:10:39]} {[%emt 00:00:09]} Kxg7 {[%clk 00:09:22]} {[%emt
00:00:19]} 21. Qf6+ {[%clk 00:10:41]} {[%emt 00:00:01]} Kg8 {[%clk 00:09:22]}
{[%emt 00:00:03]} 22. Nxf8 {[%clk 00:10:42]} {[%emt 00:00:02]} Kxf8 {[%clk
00:09:23]} {[%emt 00:00:02]} 23. Rd8# {[%clk 00:10:44]} 1-0

[Event "Orlicka sachovnice 2023"]
[Site "Usti nad Orlici, Czech Republic"]
[Date "2023.05.06"]
[Round "2.4"]
[White "Daul, Matyas"]
[Black "Findejs, David"]
[Result "0-1"]
[TimeControl "12 min + 3 s"]
[WhiteElo "1039"]
[BlackElo "1378"]

1. e4 {[%clk 00:12:05]} {[%emt 00:00:01]} d6 {[%clk 00:12:02]} {[%emt
00:00:05]} 2. Nf3 {[%clk 00:12:01]} {[%emt 00:00:07]} Nf6 {[%clk 00:12:03]}
{[%emt 00:00:02]} 3. Nc3 {[%clk 00:11:58]} {[%emt 00:00:06]} g6 {[%clk
00:12:00]} {[%emt 00:00:05]} 4. Bc4 {[%clk 00:11:56]} {[%emt 00:00:06]} Nxe4
{[%clk 00:11:38]} {[%emt 00:00:25]} 5. Nxe4 {[%clk 00:11:56]} {[%emt 00:00:02]}
d5 {[%clk 00:11:40]} {[%emt 00:00:02]} 6. Bxd5 {[%clk 00:11:52]} {[%emt
00:00:07]} Qxd5 {[%clk 00:11:40]} {[%emt 00:00:02]} 7. d3 {[%clk 00:11:42]}
{[%emt 00:00:14]} Bg7 {[%clk 00:11:33]} {[%emt 00:00:10]} 8. O-O {[%clk
00:11:26]} {[%emt 00:00:19]} O-O {[%clk 00:11:28]} {[%emt 00:00:08]} 9. Bg5
{[%clk 00:10:57]} {[%emt 00:00:32]} Re8 {[%clk 00:10:45]} {[%emt 00:00:46]} 10.
c4 {[%clk 00:09:33]} {[%emt 00:01:26]} Qd8 {[%clk 00:10:13]} {[%emt 00:00:34]}
11. d4 {[%clk 00:09:03]} {[%emt 00:00:34]} Bg4 {[%clk 00:09:59]} {[%emt
00:00:17]} 12. Be3 {[%clk 00:07:23]} {[%emt 00:01:44]} Nc6 {[%clk 00:09:31]}
{[%emt 00:00:30]} 13. d5 {[%clk 00:07:10]} {[%emt 00:00:16]} Ne5 {[%clk
00:09:32]} {[%emt 00:00:02]} 14. Neg5 {[%clk 00:06:48]} {[%emt 00:00:25]} h6
{[%clk 00:09:04]} {[%emt 00:00:32]} 15. h3 {[%clk 00:06:35]} {[%emt 00:00:16]}
Bxf3 {[%clk 00:08:28]} {[%emt 00:00:38]} 16. Nxf3 {[%clk 00:06:33]} {[%emt
00:00:06]} Nxc4 {[%clk 00:08:28]} {[%emt 00:00:04]} 17. Qb3 {[%clk 00:05:01]}
{[%emt 00:01:34]} Nd6 {[%clk 00:07:09]} {[%emt 00:01:22]} 18. Bf4 {[%clk
00:04:13]} {[%emt 00:00:51]} Qd7 {[%clk 00:06:42]} {[%emt 00:00:31]} 19. Bxd6
{[%clk 00:04:01]} {[%emt 00:00:14]} cxd6 {[%clk 00:06:43]} {[%emt 00:00:03]} 20.
Qc4 {[%clk 00:03:16]} {[%emt 00:00:50]} Bxb2 {[%clk 00:06:03]} {[%emt
00:00:42]} 21. Rab1 {[%clk 00:02:50]} {[%emt 00:00:28]} Bg7 {[%clk 00:05:57]}
{[%emt 00:00:09]} 22. Qb5 {[%clk 00:02:45]} {[%emt 00:00:08]} Qxb5 {[%clk
00:05:50]} {[%emt 00:00:11]} 23. Rxb5 {[%clk 00:02:46]} b6 {[%clk 00:05:48]}
{[%emt 00:00:05]} 24. a4 {[%clk 00:02:40]} {[%emt 00:00:09]} Rec8 {[%clk
00:05:11]} {[%emt 00:00:40]} 25. Re1 {[%clk 00:02:28]} {[%emt 00:00:14]} Kf8
{[%clk 00:04:50]} {[%emt 00:00:25]} 26. a5 {[%clk 00:02:20]} {[%emt 00:00:11]}
Rc5 {[%clk 00:04:21]} {[%emt 00:00:32]} 27. Rxc5 {[%clk 00:02:09]} {[%emt
00:00:14]} bxc5 {[%clk 00:04:22]} {[%emt 00:00:02]} 28. g4 {[%clk 00:01:57]}
{[%emt 00:00:15]} a6 {[%clk 00:04:23]} {[%emt 00:00:03]} 29. h4 {[%clk
00:01:50]} {[%emt 00:00:10]} Rb8 {[%clk 00:04:19]} {[%emt 00:00:08]} 30. Nd2
{[%clk 00:01:38]} {[%emt 00:00:14]} Bc3 {[%clk 00:04:16]} {[%emt 00:00:06]} 31.
Re2 {[%clk 00:01:37]} {[%emt 00:00:04]} Bxd2 {[%clk 00:03:58]} {[%emt
00:00:21]} 32. Rxd2 {[%clk 00:01:39]} {[%emt 00:00:01]} Rb5 {[%clk 00:04:00]}
{[%emt 00:00:02]} 33. Ra2 {[%clk 00:01:36]} {[%emt 00:00:06]} c4 {[%clk
00:04:01]} {[%emt 00:00:02]} 34. f4 {[%clk 00:01:34]} {[%emt 00:00:04]} c3
{[%clk 00:04:02]} {[%emt 00:00:03]} 35. f5 {[%clk 00:01:18]} {[%emt 00:00:20]}
Rc5 {[%clk 00:03:58]} {[%emt 00:00:06]} 36. Rc2 {[%clk 00:01:16]} {[%emt
00:00:05]} gxf5 {[%clk 00:03:51]} {[%emt 00:00:11]} 37. gxf5 {[%clk 00:01:17]}
Rxd5 {[%clk 00:03:46]} {[%emt 00:00:08]} 38. Rxc3 {[%clk 00:01:19]} {[%emt
00:00:02]} Rxf5 {[%clk 00:03:44]} {[%emt 00:00:05]} 39. Rc8+ {[%clk 00:01:19]}
{[%emt 00:00:03]} Kg7 {[%clk 00:03:45]} {[%emt 00:00:02]} 40. Rc7 {[%clk
00:01:20]} {[%emt 00:00:02]} Kf6 {[%clk 00:03:40]} {[%emt 00:00:08]} 41. Rc4
{[%clk 00:01:01]} {[%emt 00:00:21]} Rxa5 {[%clk 00:03:40]} {[%emt 00:00:03]} 42.
Kf2 {[%clk 00:01:00]} {[%emt 00:00:05]} Re5 {[%clk 00:03:40]} {[%emt 00:00:03]}
43. Kf3 {[%clk 00:01:00]} {[%emt 00:00:03]} a5 {[%clk 00:03:25]} {[%emt
00:00:18]} 44. Ra4 {[%clk 00:00:58]} {[%emt 00:00:05]} Ke6 {[%clk 00:03:13]}
{[%emt 00:00:15]} 45. Rf4 {[%clk 00:00:39]} {[%emt 00:00:22]} Rf5 {[%clk
00:03:06]} {[%emt 00:00:10]} 0-1

[Event "Orlicka sachovnice 2023"]
[Site "Usti nad Orlici, Czech Republic"]
[Date "2023.05.06"]
[Round "2.5"]
[White "Pokorny, Marian"]
[Black "Seidl, Vaclav"]
[Result "1/2-1/2"]
[TimeControl "12 min + 3 s"]
[WhiteElo "1031"]
[BlackElo "1373"]

1. e4 {[%clk 00:12:03]} {[%emt 00:00:03]} c5 {[%clk 00:12:03]} {[%emt
00:00:03]} 2. c3 {[%clk 00:12:01]} {[%emt 00:00:04]} e6 {[%clk 00:11:57]}
{[%emt 00:00:09]} 3. d4 {[%clk 00:12:02]} {[%emt 00:00:02]} cxd4 {[%clk
00:11:41]} {[%emt 00:00:20]} 4. cxd4 {[%clk 00:12:01]} {[%emt 00:00:04]} Nf6
{[%clk 00:11:40]} {[%emt 00:00:04]} 5. Nc3 {[%clk 00:12:01]} {[%emt 00:00:03]}
d6 {[%clk 00:11:42]} 6. Nf3 {[%clk 00:12:00]} {[%emt 00:00:05]} Be7 {[%clk
00:11:43]} {[%emt 00:00:03]} 7. Bd3 {[%clk 00:11:58]} {[%emt 00:00:04]} O-O
{[%clk 00:11:42]} {[%emt 00:00:05]} 8. O-O {[%clk 00:11:43]} {[%emt 00:00:18]}
Nc6 {[%clk 00:11:41]} {[%emt 00:00:02]} 9. Bg5 {[%clk 00:11:35]} {[%emt
00:00:10]} Bd7 {[%clk 00:11:32]} {[%emt 00:00:14]} 10. Qd2 {[%clk 00:11:18]}
{[%emt 00:00:19]} a6 {[%clk 00:11:06]} {[%emt 00:00:29]} 11. Rfe1 {[%clk
00:11:09]} {[%emt 00:00:12]} Nb4 {[%clk 00:10:07]} {[%emt 00:01:02]} 12. a3
{[%clk 00:10:52]} {[%emt 00:00:20]} Nxd3 {[%clk 00:10:09]} {[%emt 00:00:01]} 13.
Qxd3 {[%clk 00:10:52]} {[%emt 00:00:02]} Bc6 {[%emt 00:00:32]} 14. e5 {[%clk
00:10:29]} {[%emt 00:00:26]} dxe5 {[%clk 00:09:25]} {[%emt 00:00:19]} 15. Nxe5
{[%clk 00:10:19]} {[%emt 00:00:12]} Bd5 {[%clk 00:08:03]} {[%emt 00:01:24]} 16.
Rad1 {[%clk 00:09:54]} {[%emt 00:00:28]} Rc8 {[%clk 00:07:31]} {[%emt
00:00:35]} 17. Qg3 {[%clk 00:07:42]} {[%emt 00:00:56]} g6 {[%clk 00:07:07]}
{[%emt 00:01:47]} 18. Qf4 {[%clk 00:06:44]} {[%emt 00:01:01]} Nh5 {[%clk
00:06:24]} {[%emt 00:00:46]} 19. Bxe7 {[%clk 00:05:52]} {[%emt 00:00:55]} Nxf4
{[%clk 00:06:13]} {[%emt 00:00:13]} 20. Bxd8 {[%clk 00:05:49]} {[%emt
00:00:06]} Rfxd8 {[%clk 00:06:14]} {[%emt 00:00:03]} 21. f3 {[%clk 00:03:56]}
{[%emt 00:01:56]} Bb3 {[%clk 00:05:29]} {[%emt 00:00:47]} 22. Rd2 {[%clk
00:03:54]} {[%emt 00:00:05]} Nd5 {[%clk 00:05:28]} {[%emt 00:00:05]} 23. Nxd5
{[%clk 00:03:48]} {[%emt 00:00:09]} Bxd5 {[%clk 00:05:13]} {[%emt 00:00:18]} 24.
Kf2 {[%clk 00:03:30]} {[%emt 00:00:20]} b5 {[%clk 00:04:46]} {[%emt 00:00:31]}
25. Ng4 {[%clk 00:03:21]} {[%emt 00:00:11]} Rd6 {[%clk 00:03:28]} {[%emt
00:01:22]} 26. Nf6+ {[%clk 00:03:14]} {[%emt 00:00:09]} Kg7 {[%clk 00:03:30]}
{[%emt 00:00:01]} 27. Nxd5 {[%clk 00:03:14]} {[%emt 00:00:04]} Rxd5 {[%clk
00:03:32]} 28. Re4 {[%clk 00:03:10]} {[%emt 00:00:06]} Rcd8 {[%clk 00:03:30]}
{[%emt 00:00:06]} 29. Ke3 {[%clk 00:03:09]} {[%emt 00:00:04]} h5 {[%clk
00:02:45]} {[%emt 00:00:48]} 30. Re5 {[%clk 00:03:04]} {[%emt 00:00:07]} Kf6
{[%clk 00:02:32]} {[%emt 00:00:14]} 31. Rxd5 {[%clk 00:03:01]} {[%emt
00:00:07]} Rxd5 {[%clk 00:02:34]} {[%emt 00:00:01]} 32. g3 {[%clk 00:02:50]}
{[%emt 00:00:15]} Ke7 {[%clk 00:02:30]} {[%emt 00:00:06]} 33. f4 {[%clk
00:02:48]} {[%emt 00:00:05]} Kd6 {[%clk 00:02:24]} {[%emt 00:00:10]} 34. Ke4
{[%clk 00:02:45]} {[%emt 00:00:05]} Kd7 {[%clk 00:02:13]} {[%emt 00:00:14]} 35.
Rc2 {[%clk 00:02:40]} {[%emt 00:00:08]} f5+ {[%clk 00:01:38]} {[%emt 00:00:37]}
36. Ke3 {[%clk 00:02:31]} {[%emt 00:00:12]} Rd6 {[%clk 00:01:40]} {[%emt
00:00:02]} 37. Rc5 {[%clk 00:02:29]} {[%emt 00:00:05]} Rc6 {[%clk 00:01:38]}
{[%emt 00:00:05]} 38. b4 {[%clk 00:02:24]} {[%emt 00:00:08]} Kd6 {[%clk
00:01:32]} {[%emt 00:00:08]} 39. Rxc6+ {[%clk 00:02:16]} {[%emt 00:00:12]} Kxc6
{[%emt 00:00:02]} 40. Kd3 {[%emt 00:00:02]} Kd5 {[%clk 00:01:26]} {[%emt
00:00:10]} 41. h3 {[%clk 00:02:12]} {[%emt 00:00:08]} Kd6 {[%clk 00:01:27]}
{[%emt 00:00:01]} 42. Kc3 {[%clk 00:02:04]} {[%emt 00:00:12]} Kc6 {[%clk
00:01:27]} {[%emt 00:00:04]} 43. Kd3 {[%clk 00:01:57]} {[%emt 00:00:09]} Kd5
{[%clk 00:01:29]} {[%emt 00:00:01]} 44. h4 {[%clk 00:01:50]} {[%emt 00:00:08]}
Kd6 {[%clk 00:01:30]} {[%emt 00:00:03]} 45. Ke3 {[%clk 00:01:45]} {[%emt
00:00:08]} Kc6 {[%emt 00:00:02]} 46. Kd2 {[%clk 00:01:44]} {[%emt 00:00:03]}
Kd6 {[%clk 00:01:29]} {[%emt 00:00:06]} 47. Kc3 {[%clk 00:01:45]} {[%emt
00:00:02]} Kc6 {[%clk 00:01:26]} {[%emt 00:00:06]} 48. Kd2 {[%clk 00:01:45]}
{[%emt 00:00:03]} Kb6 {[%clk 00:01:28]} {[%emt 00:00:01]} 49. Kc3 {[%emt
00:00:08]} Kc6 {[%clk 00:01:21]} {[%emt 00:00:09]} 50. Kd2 {[%clk 00:01:38]}
{[%emt 00:00:05]} Kb6 {[%clk 00:01:23]} {[%emt 00:00:03]} 51. Kc3 {[%clk
00:01:39]} a5 {[%clk 00:01:25]} {[%emt 00:00:01]} 52. Kd3 {[%clk 00:01:36]}
{[%emt 00:00:06]} axb4 {[%clk 00:00:52]} {[%emt 00:00:36]} 53. axb4 {[%clk
00:01:37]} {[%emt 00:00:03]} Kc6 {[%clk 00:00:47]} {[%emt 00:00:05]} 54. Kc3
{[%clk 00:01:35]} {[%emt 00:00:07]} Kd6 {[%emt 00:00:06]} 55. Kd2 {[%clk
00:01:36]} {[%emt 00:00:03]} Kc6 {[%clk 00:00:30]} {[%emt 00:00:18]} 56. Kc3
{[%clk 00:01:36]} {[%emt 00:00:03]} Kd6 {[%clk 00:00:29]} {[%emt 00:00:04]}
1/2-1/2